[Event "CZE-ch U10 Open 2023"]
[Site "Teplice"]
[Date "2023.03.13"]
[Round "3.5"]
[White "Velim, Vojtech"]
[Black "Kupka, Frantisek"]
[Result "1-0"]
[ECO "D02"]
[WhiteElo "1369"]
[BlackElo "1988"]
[Annotator "TA"]
[PlyCount "101"]
[EventDate "2023.03.09"]
[EventType "swiss"]
[EventCountry "CZE"]
[SourceTitle "playchess.com"]
[Source "ChessBase"]
[SourceQuality "1"]
[TimeControl "40/5400+30:1800+30"]

{[%evp 9,100,17,81,32,54,27,29,22,55,35,52,0,70,-87,91,96,102,86,127,114,143,58,85,85,138,53,232,243,231,233,216,211,239,142,442,440,550,541,614,610,909,900,893,872,903,903,881,886,965,894,889,878,1088,1068,1477,1450,1645,1729,2301,2331,4997,2814,6075,5930,29984,29985,29985,29986,29986,29987,29987,29988,29988,29989,29989,29990,29990,29991,29991,29992,29992,29993,29993,29994,29994,29995,29995,29996,29996,29997,29998,29999,29999]} 1. d4 {[%emt 0:00:21]} d5 {[%emt 0:00:07]} 2. Nf3 {[%emt 0:00:05]} Nc6 {[%emt 0:00:21]} 3. c4 {[%emt 0:00:39]} Nf6 {[%emt 0:01:36]} 4. Nc3 {[%emt 0:01:19]} Bf5 {[%emt 0:01:31]} 5. Bg5 {[%emt 0:01:51]} e6 {[%emt 0:01:58]} (5... Ne4 $1 $11) 6. e3 {[%emt 0:02:25] D07: Queen's Gambit: Chigorin Defence.} (6. Bxf6 $16 gxf6 7. cxd5 exd5 8. e3) 6... Bb4 {[%emt 0:02:33]} 7. a3 {[%emt 0:01:24]} Bxc3+ {[%emt 0:01:15]} 8. bxc3 {[%emt 0:00:24] White has an edge.} O-O {[%emt 0:01:37]} 9. cxd5 {[%emt 0:00:42]} exd5 {[%emt 0:03:04] [#]} 10. Nh4 $146 {[%emt 0:01:05]} (10. Nd2 $14) ({Predecessor:} 10. Bd3 Bg6 11. O-O Bxd3 12. Qxd3 Re8 13. Qb5 Re6 14. Qd3 Re8 15. Rfc1 Na5 16. Nd2 {0-1 Alonso Garcia,P (1722)-Reno Chanca,J (1498) Oviedo op 2006 (7.23)}) 10... h6 {[%emt 0:02:17]} (10... Be4 $11) 11. Bxh6 $2 {[%emt 0:02:45]} (11. Nxf5 $14 {keeps the upper hand.} hxg5 12. h4) 11... Bh7 $2 {[%emt 0:02:57]} (11... Bg4 $17 12. f3 Nh7) 12. Bg5 $16 {[%emt 0:01:09]} Qd6 {[%emt 0:02:13]} 13. Bd3 {[%emt 0:03:11]} Ne4 {[%emt 0:02:26] [#]} 14. Bf4 {[%emt 0:04:00]} Qf6 {[%emt 0:01:58]} 15. Bg3 {[%emt 0:02:16]} (15. Qh5 $16) 15... Rfe8 {[%emt 0:04:41]} 16. O-O {[%emt 0:01:45]} (16. Qh5 {is more complex.} Ne7 17. O-O Qg5 18. Qe2) 16... Re7 {[%emt 0:02:38]} (16... Na5 $142) 17. f3 {[%emt 0:03:40]} (17. Qh5 $16) 17... Nxc3 $2 {[%emt 0:02:12]} ({Better is} 17... Nxg3 $14 18. Bxh7+ Kxh7 19. Qd3+ Ne4) 18. Bxh7+ $18 {[%emt 0:00:25]} Kxh7 {[%emt 0:03:06]} 19. Qc2+ {[%emt 0:01:35]} Kg8 {[%emt 0:01:19]} 20. Qxc3 {[%emt 0:00:20] Qd3 would be deadly.} Rae8 {[%emt 0:01:53]} 21. Rae1 {[%emt 0:02:54]} (21. e4 $18 dxe4 22. fxe4 Qxd4+ 23. Qxd4 Nxd4 24. Nf5 Ne2+ 25. Kf2 Rxe4 26. Bxc7) 21... Re6 {[%emt 0:04:34][%mdl 8192] Black cannot hold the game after this.} (21... g5 $16) 22. f4 {[%emt 0:03:21]} a5 {[%emt 0:02:10]} 23. Nf3 {[%emt 0:00:52][%cal Bh4f3,Bf3e5,Be5c6,Bc6a5][%mdl 32]} b5 {[%emt 0:02:30] [#]} 24. f5 $1 {[%emt 0:02:16]} Qxf5 {[%emt 0:01:42]} (24... b4 25. Qb3) 25. Ne5 {[%emt 0:00:30] Wards off Qg6} b4 {[%emt 0:01:57]} 26. Qxc6 {[%emt 0:01:15]} ({Stronger than} 26. Nxc6 Qxf1+ 27. Kxf1 bxc3 28. Nxa5 Ra6 $11) 26... Qxf1+ {[%emt 0:01:14]} 27. Kxf1 {[%emt 0:00:21][%cal Bg1f1,Bf1f2,Bf2e2][%mdl 32]} Rxc6 {[%emt 0:00:52]} 28. Nxc6 {[%emt 0:00:11]} bxa3 {[%emt 0:00:57]} 29. Kf2 {[%emt 0:00:28]} Re6 {[%emt 0:00:53]} 30. Nxa5 {[%emt 0:00:25]} a2 {[%emt 0:00:54]} 31. Ra1 {[%emt 0:00:22]} c6 {[%emt 0:00:46]} 32. Rxa2 {[%emt 0:00:06]} Rf6+ {[%emt 0:00:34]} 33. Ke2 {[%emt 0:00:26]} Kh7 {[%emt 0:00:37]} 34. Rc2 {[%emt 0:00:55]} Kg8 {[%emt 0:00:45]} 35. Rxc6 {[%emt 0:00:58]} Rf5 {[%emt 0:00:28]} 36. Rc5 {[%emt 0:00:58] Black must now prevent e4.} g6 {[%emt 0:00:57] [#]} 37. e4 $1 {[%emt 0:02:11] White mates.} dxe4 {[%emt 0:00:47]} 38. Rxf5 {[%emt 0:00:10]} gxf5 {[%emt 0:00:21]} 39. Ke3 {[%emt 0:00:58]} Kg7 {[%emt 0:00:38]} 40. Kf4 {[%emt 0:00:27]} Kf6 {[%emt 0:00:31]} 41. h4 {[%emt 0:30:24][%cal Bh2h4,Bh4h5][%mdl 32]} Ke7 {[%emt 0:31:17]} 42. Kxf5 {[%emt 0:00:15]} e3 {[%emt 0:00:40]} 43. h5 {[%emt 0:00:16]} e2 {[%emt 0:00:24]} 44. Be1 {[%emt 0:00:18]} Kf8 {[%emt 0:00:32]} 45. h6 {[%emt 0:00:10]} Kg8 {[%emt 0:00:22]} 46. d5 {[%emt 0:00:14]} Kh7 {[%emt 0:00:26]} 47. d6 {[%emt 0:00:08]} Kxh6 {[%emt 0:00:17]} 48. d7 {[%emt 0:00:33]} Kg7 {[%emt 0:00:24]} 49. d8=Q {[%emt 0:00:15]} Kh7 {[%emt 0:00:25]} 50. Kf6 {[%emt 0:00:18]} Kh6 {[%emt 0:00:16]} 51. Qh8# {Weighted Error Value: White=0.37/Black=0.76} 1-0

[Event "CZE-ch U10 Open 2023"]
[Site "Teplice"]
[Date "2023.03.13"]
[Round "3.6"]
[White "Bucek, Vit"]
[Black "Kozusnik, Jan"]
[Result "0-1"]
[ECO "B01"]
[WhiteElo "1198"]
[BlackElo "1286"]
[Annotator "NA RC COMBH"]
[PlyCount "88"]
[EventDate "2023.03.09"]
[EventType "swiss"]
[EventCountry "CZE"]
[SourceTitle "playchess.com"]
[Source "ChessBase"]
[SourceQuality "1"]
[TimeControl "40/5400+30:1800+30"]

1. e4 {[%emt 0:00:03]} d5 {[%emt 0:00:07]} 2. exd5 {[%emt 0:00:06]} Nf6 {[%emt 0:00:04]} 3. Nc3 {[%emt 0:00:09]} Nxd5 {[%emt 0:00:08]} 4. Bc4 {[%emt 0:00:07]} c6 {[%emt 0:00:36]} 5. d4 {[%emt 0:00:17]} Bf5 {[%emt 0:00:20]} 6. Nge2 {[%emt 0:00:22]} e6 {[%emt 0:00:24]} 7. O-O {[%emt 0:00:21]} Nd7 {[%emt 0:00:35]} 8. Be3 {[%emt 0:01:06]} N7b6 {[%emt 0:00:42]} 9. Bb3 {[%emt 0:02:30]} Bd6 10. Qd2 {[%emt 0:03:37]} O-O {[%emt 0:03:52]} 11. Rad1 {[%emt 0:01:22]} Nxc3 {[%emt 0:01:46]} 12. Nxc3 {[%emt 0:00:19]} Bb4 {[%emt 0:00:52]} 13. Rfe1 {[%emt 0:01:34]} Nd5 {[%emt 0:02:20]} 14. h3 {[%emt 0:02:27]} Bxc3 {[%emt 0:00:47]} 15. bxc3 {[%emt 0:00:53]} Rc8 {[%emt 0:01:07]} 16. c4 {[%emt 0:01:31]} Nb6 {[%emt 0:00:26]} 17. c5 {[%emt 0:01:12]} Nd5 {[%emt 0:00:15]} 18. c4 {[%emt 0:00:12]} Nf6 {[%emt 0:00:22]} 19. Bg5 {[%emt 0:00:35]} b6 {[%emt 0:02:59]} 20. cxb6 {[%emt 0:16:19]} axb6 {[%emt 0:00:20]} 21. c5 {[%emt 0:02:03]} bxc5 {[%emt 0:00:21]} 22. dxc5 {[%emt 0:00:15]} Qxd2 {[%emt 0:00:07]} 23. Rxd2 {[%emt 0:00:11]} Ne4 {[%emt 0:00:37]} 24. Rd7 {[%emt 0:13:34]} Nxg5 {[%emt 0:01:43]} 25. f3 {[%emt 0:01:42]} Bxh3 {[%emt 0:02:18]} 26. Kh2 {[%emt 0:00:33]} Bf5 {[%emt 0:00:39]} 27. a4 {[%emt 0:01:37]} Ra8 {[%emt 0:01:44]} 28. Ra1 {[%emt 0:00:12]} e5 {[%emt 0:03:11]} 29. Re7 {[%emt 0:01:39]} Ne6 {[%emt 0:00:45]} 30. Bxe6 {[%emt 0:00:59]} Bxe6 {[%emt 0:00:17]} 31. a5 {[%emt 0:00:12]} Ra6 {[%emt 0:00:28]} 32. Rb7 {[%emt 0:01:22]} h6 {[%emt 0:00:43]} 33. Rb6 {[%emt 0:00:48]} Rfa8 {[%emt 0:00:12]} 34. Kg3 {[%emt 0:01:11]} Rxa5 {[%emt 0:00:11]} 35. Rxa5 {[%emt 0:00:19]} Rxa5 {[%emt 0:00:06]} 36. Rxc6 {[%emt 0:00:09]} Ra8 {[%emt 0:00:11]} 37. f4 {[%emt 0:01:32]} exf4+ {[%emt 0:00:27]} 38. Kxf4 Rc8 {[%emt 0:02:32]} 39. Rxc8+ {[%emt 0:00:50]} Bxc8 {[%emt 0:00:04]} 40. Ke5 {[%emt 0:00:08]} Kh7 {[%emt 0:00:18]} 41. Kd6 {[%emt 0:30:14]} Kg6 {[%emt 0:30:37]} 42. Kc7 {[%emt 0:00:20]} Be6 {[%emt 0:00:15]} 43. Kd6 {[%emt 0:00:11]} Kf5 {[%emt 0:00:52]} 44. c6 {[%emt 0:00:15]} g5 0-1

[Event "CZE-ch U10 Open 2023"]
[Site "Teplice"]
[Date "2023.03.13"]
[Round "3.7"]
[White "Fadrny, Jachym"]
[Black "Lutskiy, Mikhail"]
[Result "0-1"]
[ECO "D15"]
[WhiteElo "1279"]
[BlackElo "1150"]
[Annotator "NA RC COMBH"]
[PlyCount "86"]
[EventDate "2023.03.09"]
[EventType "swiss"]
[EventCountry "CZE"]
[SourceTitle "playchess.com"]
[Source "ChessBase"]
[SourceQuality "1"]
[TimeControl "40/5400+30:1800+30"]

1. d4 {[%emt 0:00:04]} d5 {[%emt 0:00:09]} 2. c4 {[%emt 0:00:08]} c6 {[%emt 0:00:13]} 3. Nf3 {[%emt 0:00:08]} Nf6 {[%emt 0:00:19]} 4. Nc3 {[%emt 0:00:06]} Bf5 {[%emt 0:00:31]} 5. Qb3 {[%emt 0:00:13]} Qb6 {[%emt 0:00:35]} 6. c5 {[%emt 0:00:06]} Qxb3 7. axb3 Na6 {[%emt 0:04:04]} 8. Na2 {[%emt 0:02:51]} Nc7 {[%emt 0:03:59]} 9. e3 {[%emt 0:03:13]} g6 {[%emt 0:02:01]} 10. b4 {[%emt 0:01:11]} a6 {[%emt 0:01:25]} 11. Nc3 {[%emt 0:02:41]} Bg7 {[%emt 0:02:40]} 12. b5 {[%emt 0:02:32]} axb5 {[%emt 0:01:45]} 13. Ra3 {[%emt 0:05:27]} O-O {[%emt 0:00:58]} 14. Na2 {[%emt 0:04:06]} Na6 {[%emt 0:12:33]} 15. Bd2 {[%emt 0:01:32]} Nd7 {[%emt 0:02:58]} 16. Nh4 {[%emt 0:07:01]} Bc2 {[%emt 0:03:26]} 17. Bd3 {[%emt 0:06:19]} Bxd3 18. Rxd3 {[%emt 0:00:35]} Naxc5 {[%emt 0:03:11]} 19. Ra3 {[%emt 0:08:28]} Rxa3 20. bxa3 {[%emt 0:00:25]} Nd3+ {[%emt 0:02:27]} 21. Ke2 {[%emt 0:00:09]} Nb2 {[%emt 0:00:27]} 22. Bb4 {[%emt 0:01:59]} Re8 {[%emt 0:00:23]} 23. f4 {[%emt 0:03:17]} e6 {[%emt 0:00:37]} 24. Nf3 {[%emt 0:08:41]} Nc4 {[%emt 0:01:47]} 25. Nd2 {[%emt 0:04:19]} Ndb6 {[%emt 0:00:43]} 26. Nb3 {[%emt 0:03:34]} Nd7 {[%emt 0:01:42]} 27. Nac1 {[%emt 0:02:06]} f6 {[%emt 0:01:18]} 28. Nd2 {[%emt 0:01:53]} e5 {[%emt 0:01:33]} 29. Nxc4 {[%emt 0:05:17]} dxc4 {[%emt 0:01:02]} 30. Kf3 {[%emt 0:01:15]} exd4 {[%emt 0:00:58]} 31. exd4 {[%emt 0:00:33]} f5 {[%emt 0:01:28]} 32. Ne2 {[%emt 0:00:56]} Nb6 {[%emt 0:00:59]} 33. Bd6 {[%emt 0:07:31]} Nd5 {[%emt 0:01:04]} 34. Be5 {[%emt 0:00:27]} Bxe5 {[%emt 0:00:42]} 35. fxe5 {[%emt 0:00:17]} Ra8 {[%emt 0:03:18]} 36. Ra1 {[%emt 0:01:21]} Ra4 {[%emt 0:00:34]} 37. Nf4 {[%emt 0:03:25]} b4 {[%emt 0:01:23]} 38. Nxd5 {[%emt 0:01:04]} cxd5 {[%emt 0:00:12]} 39. Kf4 {[%emt 0:03:46]} Rxa3 {[%emt 0:00:44]} 40. Re1 {[%emt 0:00:25]} Kf7 {[%emt 0:00:50]} 41. h4 {[%emt 0:30:59]} b3 {[%emt 0:30:35]} 42. e6+ {[%emt 0:00:16]} Ke7 {[%emt 0:00:09]} 43. Ke5 {[%emt 0:00:27]} Ra5 {[%emt 0:00:37]} 0-1

[Event "CZE-ch U10 Open 2023"]
[Site "Teplice"]
[Date "2023.03.13"]
[Round "3.8"]
[White "Skoloud, Josef"]
[Black "Zelenka, Tomas"]
[Result "1-0"]
[ECO "C64"]
[WhiteElo "1090"]
[BlackElo "1272"]
[Annotator "NA RC COMBH"]
[PlyCount "59"]
[EventDate "2023.03.09"]
[EventType "swiss"]
[EventCountry "CZE"]
[SourceTitle "playchess.com"]
[Source "ChessBase"]
[SourceQuality "1"]
[TimeControl "40/5400+30:1800+30"]

1. e4 {[%emt 0:00:02]} e5 {[%emt 0:00:08]} 2. Nf3 {[%emt 0:00:06]} Nc6 {[%emt 0:00:08]} 3. Bb5 {[%emt 0:00:17]} Bc5 {[%emt 0:00:36]} 4. O-O {[%emt 0:00:45]} d6 {[%emt 0:03:05]} 5. c3 {[%emt 0:01:35]} a6 {[%emt 0:00:42]} 6. Ba4 {[%emt 0:00:42]} b5 {[%emt 0:00:56]} 7. Bb3 {[%emt 0:00:36]} Bg4 {[%emt 0:00:42]} 8. Bd5 {[%emt 0:05:51]} Qd7 {[%emt 0:03:06]} 9. d4 {[%emt 0:03:28]} exd4 {[%emt 0:02:22]} 10. cxd4 {[%emt 0:00:29]} Bxf3 {[%emt 0:02:09]} 11. gxf3 {[%emt 0:00:40]} Bb6 {[%emt 0:02:14]} 12. Kh1 {[%emt 0:02:49]} Nf6 {[%emt 0:00:40]} 13. Bxc6 {[%emt 0:00:56]} Qxc6 {[%emt 0:00:12]} 14. Rg1 {[%emt 0:00:44]} O-O-O {[%emt 0:06:04]} 15. Nc3 {[%emt 0:04:30]} g6 {[%emt 0:03:24]} 16. Bg5 {[%emt 0:01:43]} Nh5 {[%emt 0:05:59]} 17. Bxd8 {[%emt 0:01:51]} Rxd8 {[%emt 0:00:12]} 18. Rc1 {[%emt 0:01:33]} Qb7 {[%emt 0:02:26]} 19. Nd5 {[%emt 0:01:52]} Ba5 {[%emt 0:01:25]} 20. b4 {[%emt 0:01:29]} Bb6 {[%emt 0:00:13]} 21. Rc2 {[%emt 0:02:53]} f5 {[%emt 0:00:47]} 22. Qc1 {[%emt 0:01:30]} fxe4 {[%emt 0:01:05]} 23. Rc6 {[%emt 0:01:34]} exf3 {[%emt 0:00:54]} 24. Nxb6+ {[%emt 0:01:24]} Kb8 {[%emt 0:00:18]} 25. Nd5 {[%emt 0:00:32]} Qa7 {[%emt 0:04:48]} 26. Rxa6 {[%emt 0:03:36]} Qb7 {[%emt 0:00:45]} 27. Qc6 {[%emt 0:01:59]} Qxc6 {[%emt 0:00:57]} 28. Rxc6 {[%emt 0:00:07]} Kb7 {[%emt 0:00:52]} 29. Rxc7+ {[%emt 0:00:40]} Ka6 {[%emt 0:00:22]} 30. Rgc1 {[%emt 0:00:55]} 1-0

[Event "CZE-ch U10 Open 2023"]
[Site "Teplice"]
[Date "2023.03.13"]
[Round "3.9"]
[White "Galia, Simon"]
[Black "Vorlik, Jachym"]
[Result "1/2-1/2"]
[ECO "B13"]
[WhiteElo "1071"]
[BlackElo "1204"]
[Annotator "NA RC COMBH"]
[PlyCount "81"]
[EventDate "2023.03.09"]
[EventType "swiss"]
[EventCountry "CZE"]
[SourceTitle "playchess.com"]
[Source "ChessBase"]
[SourceQuality "1"]
[TimeControl "40/5400+30:1800+30"]

1. e4 {[%emt 0:00:24]} c6 {[%emt 0:00:13]} 2. d4 {[%emt 0:00:57]} d5 {[%emt 0:00:28]} 3. exd5 {[%emt 0:01:13]} cxd5 {[%emt 0:00:30]} 4. Nc3 {[%emt 0:01:19]} Nf6 {[%emt 0:01:02]} 5. Nf3 {[%emt 0:01:01]} Bf5 {[%emt 0:00:58]} 6. Bb5+ {[%emt 0:03:22]} Nbd7 {[%emt 0:01:17]} 7. Bg5 {[%emt 0:01:33]} g6 {[%emt 0:08:59]} 8. Bxf6 {[%emt 0:03:06]} exf6 {[%emt 0:00:40]} 9. Nxd5 {[%emt 0:01:30]} Bg7 {[%emt 0:02:29]} 10. O-O {[%emt 0:02:04]} O-O {[%emt 0:00:50]} 11. Ne3 {[%emt 0:02:25]} Be4 {[%emt 0:02:45]} 12. d5 {[%emt 0:04:29]} f5 {[%emt 0:01:25]} 13. Nd2 {[%emt 0:03:07]} Bxb2 {[%emt 0:01:30]} 14. Rb1 {[%emt 0:01:22]} Bg7 {[%emt 0:01:46]} 15. f3 {[%emt 0:00:44]} Qb6 {[%emt 0:03:42]} 16. Ndc4 {[%emt 0:07:49]} Qc7 {[%emt 0:02:56]} 17. Bxd7 {[%emt 0:02:14]} Qxd7 {[%emt 0:01:10]} 18. fxe4 {[%emt 0:01:44]} fxe4 {[%emt 0:01:58]} 19. Re1 {[%emt 0:03:22]} Rfe8 {[%emt 0:01:31]} 20. Nf1 {[%emt 0:01:53]} Rac8 {[%emt 0:02:22]} 21. Nce3 {[%emt 0:03:14]} b6 {[%emt 0:01:42]} 22. Rb4 {[%emt 0:02:15]} Bc3 {[%emt 0:03:10]} 23. Ng4 {[%emt 0:04:55]} Qd6 {[%emt 0:02:28]} 24. Rbxe4 {[%emt 0:04:57]} Bxe1 {[%emt 0:01:12]} 25. Qxe1 {[%emt 0:01:12]} Qc5+ {[%emt 0:02:36]} 26. Kh1 {[%emt 0:02:28]} Rxe4 {[%emt 0:01:21]} 27. Qxe4 {[%emt 0:02:06]} Qxc2 {[%emt 0:01:29]} 28. Qf3 {[%emt 0:03:02]} Qc1 {[%emt 0:05:31]} 29. h3 {[%emt 0:02:31]} Rd8 {[%emt 0:02:05]} 30. Kh2 {[%emt 0:04:27]} Qc7+ {[%emt 0:02:12]} 31. Ng3 {[%emt 0:02:21]} h5 {[%emt 0:01:46]} 32. Nf6+ {[%emt 0:03:52]} Kf8 {[%emt 0:01:29]} 33. Kg1 {[%emt 0:01:25]} Qc1+ {[%emt 0:01:44]} 34. Kh2 {[%emt 0:01:02]} Qc7 {[%emt 0:01:02]} 35. Kh1 {[%emt 0:00:38]} Qe5 {[%emt 0:01:18]} 36. h4 {[%emt 0:02:15]} Kg7 {[%emt 0:02:00]} 37. Nge4 {[%emt 0:02:46]} Rc8 {[%emt 0:03:12]} 38. Qf1 {[%emt 0:01:47]} Qb2 {[%emt 0:01:43]} 39. Kh2 {[%emt 0:01:05]} Qe5+ {[%emt 0:01:39]} 40. Kh1 {[%emt 0:00:40]} Qb2 {[%emt 0:00:56]} 41. Kh2 {[%emt 0:30:21]} 1/2-1/2

[Event "CZE-ch U10 Open 2023"]
[Site "Teplice"]
[Date "2023.03.13"]
[Round "4.1"]
[White "Filindash, Nikita"]
[Black "Kolar, Edvard"]
[Result "1-0"]
[ECO "A52"]
[WhiteElo "2021"]
[BlackElo "1518"]
[Annotator "TA"]
[PlyCount "83"]
[EventDate "2023.03.09"]
[EventType "swiss"]
[EventCountry "CZE"]
[SourceTitle "playchess.com"]
[Source "ChessBase"]
[SourceQuality "1"]
[TimeControl "40/5400+30:1800+30"]

{[%evp 10,83,47,18,26,7,74,67,75,64,55,-17,65,60,71,29,108,97,112,104,170,66,124,108,135,129,147,141,156,122,322,269,278,234,234,234,290,301,290,275,287,277,287,294,333,300,328,285,286,286,285,278,266,266,269,286,343,336,345,352,29954,6303,29979,29980,29980,29981,29982,29982,29982,29983,29983,29984,29984,29985,29985,29986]} 1. d4 {[%emt 0:00:02][%cal Bd2d4,Bd4e5][%mdl 32]} Nf6 {[%emt 0:00:08]} 2. c4 {[%emt 0:00:06]} e5 {[%emt 0:00:05]} 3. dxe5 {[%emt 0:00:42]} Ng4 {[%emt 0:00:06]} 4. Nf3 {[%emt 0:00:09]} Bc5 {[%emt 0:00:08]} 5. e3 {[%emt 0:00:09]} Nc6 {[%emt 0:00:14]} 6. Bd2 {[%emt 0:05:52]} O-O {[%emt 0:01:17][%cal Of8e8] A52: Budapest Gambit.} 7. Bd3 {[%emt 0:02:52]} Ngxe5 {[%emt 0:00:33]} (7... Re8 $11) 8. Nxe5 {[%emt 0:00:09]} Nxe5 {[%emt 0:00:04] [#] White is slightly better.} 9. Bxh7+ {[%emt 0:01:01][%mdl 64] Decoy} Kxh7 {[%emt 0:01:58]} 10. Qh5+ {[%emt 0:00:11]} Kg8 {[%emt 0:00:07] Threatens to win with ...Re8.} 11. Qxe5 {[%emt 0:00:03]} d6 {[%emt 0:01:55] [#]} 12. Qf4 $146 {[%emt 0:02:58]} ({Predecessor:} 12. Qg3 Be6 13. Bc3 f6 14. Nd2 d5 15. cxd5 Qxd5 16. O-O Bd6 17. Qf3 Qb5 18. b4 {½-½ Nazarian,M (1837)-Gavrjuchenkova,A (1921) RUS-chB U18 Dagomys 2009 (7)}) 12... Be6 {[%emt 0:04:18]} (12... d5 $11 {keeps the balance.}) 13. Nc3 $16 {[%emt 0:00:49][%cal Bb1c3,Bc3b5,Bb5d6][%mdl 32]} f5 {[%emt 0:05:24]} 14. h4 {[%emt 0:01:31]} c6 {[%emt 0:02:40] [#]} (14... Qf6 $16) 15. O-O {[%emt 0:08:56]} (15. h5 $1 $18) 15... d5 {[%emt 0:02:37] [#]} (15... Bb6 $14) 16. cxd5 $1 {[%emt 0:00:42]} cxd5 {[%emt 0:00:38]} 17. Nb5 {[%emt 0:06:53] Prevents Bd6} Rc8 {[%emt 0:01:27] Against Nc7} 18. Bc3 {[%emt 0:07:52]} Bd7 {[%emt 0:05:13]} 19. Nd6 $40 {[%emt 0:05:13][%mdl 128] Black is in trouble. White is much more active.} ({But not} 19. Qe5 $6 Rf7 $16) 19... Rb8 {[%emt 0:05:19] A mistake that costs the game.} (19... Bxd6 $16 20. Qxd6 Bb5 21. Qe6+ Kh7) 20. Qe5 {[%emt 0:01:47][%csl Gc3][%cal Re5g7]} d4 {[%emt 0:05:23] aiming for ...Bxd6.} 21. Bxd4 {[%emt 0:05:18]} Bxd4 {[%emt 0:00:16]} 22. Qxd4 {[%emt 0:00:10]} (22. exd4 Qf6 23. Rae1 b5 24. Qd5+ Kh7) 22... Rf6 {[%emt 0:01:37]} 23. Rfd1 {[%emt 0:06:55]} Qe7 {[%emt 0:03:51]} 24. Ne4 {[%emt 0:10:16][%mdl 64] Discovered Attack} fxe4 {[%emt 0:04:51]} 25. Qxd7 {[%emt 0:00:59]} Qf8 {[%emt 0:01:12]} 26. Qd5+ {[%emt 0:00:49]} Kh8 {[%emt 0:00:32]} 27. Qxe4 {[%emt 0:02:52]} Rxf2 {[%emt 0:01:10]} 28. Rf1 {[%emt 0:00:09]} Re8 {[%emt 0:00:45]} 29. Rxf2 {[%emt 0:00:47]} ({Don't take} 29. Qxb7 Rxf1+ 30. Rxf1 Qc5 $18) 29... Qxf2+ {[%emt 0:00:08]} 30. Kxf2 {[%emt 0:00:02]} Rxe4 $18 {[%emt 0:00:07][%mdl 4096] Endgame KR-KR} 31. g3 {[%emt 0:00:15]} Kh7 {[%emt 0:00:27]} 32. Rc1 {[%emt 0:00:54]} Kg6 {[%emt 0:00:06]} 33. Kf3 {[%emt 0:00:13]} Rb4 {[%emt 0:00:08]} 34. b3 {[%emt 0:00:06]} b5 $2 {[%emt 0:00:18]} (34... Rb6 $18 35. Rc7 Ra6 36. Rxb7 Rxa2) 35. Rc6+ {[%emt 0:00:14]} (35. Rc3 $142 Kf5 36. a3 Re4 37. g4+ Ke5 38. Rc8 Rd4 39. exd4+ Ke6 40. Re8+ Kd7 41. Rg8) 35... Kh7 {[%emt 0:00:27]} 36. Ra6 {[%emt 0:00:11] White mates.} Kg8 {[%emt 0:00:27]} 37. Rxa7 {[%emt 0:00:12]} Kh7 {[%emt 0:00:32]} 38. Rd7 {[%emt 0:00:16]} Kg6 {[%emt 0:00:14]} 39. Rd4 {[%emt 0:00:17]} Rxd4 {[%emt 0:00:22]} 40. exd4 {[%emt 0:00:02]} Kf5 {[%emt 0:00:07]} 41. g4+ {[%emt 0:30:10]} Ke6 {[%emt 0:30:10]} 42. Ke4 {[%emt 0:00:09] Weighted Error Value: White=0.16 (very precise) /Black=0.61} 1-0